bitfinex/quotes_BTCUSD_20241107
["timestamp","ask_amount","ask_price","bid_price","bid_amount"]
[1730976909420,0.54517105,74945.0,74941.0,0.001666]
[1730976910312,0.54717105,74945.0,74941.0,0.001666]
[1730976910538,0.54517105,74945.0,74941.0,0.001666]
[1730976911441,0.54717105,74945.0,74941.0,0.001666]
[1730976911864,0.54517105,74945.0,74941.0,0.001666]
[1730976912084,0.72099853,74945.0,74941.0,0.001666]
[1730976912292,0.72098854,74945.0,74941.0,0.001666]
[1730976915383,0.58874577,74945.0,74941.0,0.001666]
[1730976915619,0.46500266,74945.0,74941.0,0.001666]
[1730976916637,0.35629156,74945.0,74941.0,0.001666]
[1730976917087,0.43453467,74945.0,74941.0,0.001666]
[1730976917297,0.43452591,74945.0,74941.0,0.001666]
[1730976917445,0.42206884,74945.0,74941.0,0.001666]
[1730976918757,0.43452646,74945.0,74941.0,0.001666]
[1730976918973,0.47543884,74945.0,74941.0,0.001666]
[1730976919648,0.35919573,74945.0,74941.0,0.001666]
[1730976920484,1.05549573,74945.0,74941.0,0.001666]
[1730976920689,1.13873884,74945.0,74941.0,0.001666]
[1730976921196,1.16173884,74945.0,74941.0,0.001666]
[1730976922502,1.15673884,74945.0,74941.0,0.001666]
[1730976923134,1.07849573,74945.0,74944.0,0.132466]
[1730976923761,0.03,74945.0,74944.0,0.132466]
[1730976924789,0.03,74945.0,74944.0,0.131366]
[1730976925006,0.053,74945.0,74944.0,0.131366]
[1730976932202,0.053,74945.0,74944.0,0.531666]
[1730976933529,0.27348413,74945.0,74944.0,0.401966]
[1730976933760,0.26848413,74945.0,74944.0,0.401966]
[1730976934168,0.19024102,74945.0,74944.0,0.401966]
[1730976934883,0.23261195,74945.0,74944.0,0.401966]
[1730976938226,0.92891195,74945.0,74944.0,0.401966]
[1730976939471,0.92391195,74945.0,74944.0,0.401966]
[1730976941542,0.79167093,74945.0,74944.0,0.401966]
[1730976944156,0.09537093,74945.0,74944.0,0.401966]
[1730976946919,0.053,74945.0,74944.0,0.401966]
[1730976947152,0.053,74945.0,74944.0,0.448066]
[1730976947357,0.053,74945.0,74944.0,0.524166]
[1730976953626,0.053,74945.0,74944.0,0.478066]
[1730976956202,0.053,74945.0,74944.0,0.401966]
[1730976956203,0.26348413,74945.0,74944.0,0.401966]
[1730976956416,1.3138077,74945.0,74944.0,0.401966]
[1730976956650,1.27941103,74945.0,74944.0,0.401966]
[1730976957105,1.24497556,74945.0,74944.0,0.401966]
[1730976957322,1.16717556,74945.0,74944.0,0.401966]
[1730976957553,1.10859177,74945.0,74944.0,0.401966]
[1730976960232,1.18683488,74945.0,74944.0,0.401966]
[1730976960482,1.31543569,74945.0,74944.0,0.401966]
[1730976960731,1.26633488,74945.0,74944.0,0.401966]
[1730976962109,1.27881916,74945.0,74944.0,0.401966]
[1730976962350,1.20057605,74945.0,74944.0,0.401966]
[1730976963401,1.18809177,74945.0,74944.0,0.401966]
[1730976963844,1.20057836,74945.0,74944.0,0.401966]
[1730976964080,1.12107836,74945.0,74944.0,0.401966]
[1730976964748,1.03783525,74945.0,74944.0,0.401966]
[1730976965926,1.02534866,74945.0,74944.0,0.401966]
[1730976966606,0.03,74945.0,74944.0,0.401966]
[1730976968183,0.053,74945.0,74944.0,0.401966]
[1730976970862,0.053,74945.0,74944.0,0.43438493]
[1730976971733,0.03,74945.0,74944.0,0.51148493]
[1730976972860,0.03,74945.0,74944.0,0.479066]
[1730976975102,0.03,74948.0,74944.0,0.479066]
[1730976977047,0.03,74948.0,74945.0,0.0796]
[1730976977269,0.03,74948.0,74946.0,0.40029]
[1730976978068,0.6963,74957.0,74947.0,0.0484]
[1730976978291,0.023,74960.0,74949.0,0.03]
[1730976978528,0.023,74960.0,74951.0,0.03]
[1730976978958,0.023,74960.0,74953.0,0.03]
[1730976979186,0.023,74958.0,74953.0,0.46025]
[1730976979458,0.030833,74954.0,74953.0,0.46025]
[1730976981524,0.13207611,74954.0,74953.0,0.46025]
[1730976981777,0.26431713,74954.0,74953.0,0.46025]
[1730976982659,0.96061713,74954.0,74953.0,0.46025]
[1730976985958,1.00428316,74954.0,74953.0,0.46025]
[1730976996507,1.00421235,74954.0,74953.0,0.46025]
[1730976999654,1.00421235,74954.0,74953.0,0.45992005]
[1730977000738,1.1216935,74954.0,74953.0,0.45992005]
[1730977000991,1.2492935,74954.0,74953.0,0.45992005]
[1730977001644,1.23681235,74954.0,74953.0,0.45992005]
[1730977001876,1.24929308,74954.0,74953.0,0.45992005]
[1730977003192,1.08734997,74954.0,74953.0,0.45992005]
[1730977003420,1.10421235,74954.0,74953.0,0.45992005]
[1730977003585,1.11669119,74954.0,74953.0,0.45992005]
[1730977003780,1.10421235,74954.0,74953.0,0.45992005]
[1730977006877,1.02596924,74954.0,74953.0,0.45992005]
[1730977012495,0.19666603,74954.0,74953.0,0.45992005]
[1730977014756,0.03,74954.0,74953.0,0.45992005]
[1730977015225,0.03,74954.0,74953.0,0.50862005]
[1730977015899,0.03,74954.0,74953.0,0.58512005]
[1730977017722,0.03,74956.0,74953.0,0.58512005]
[1730977018419,0.10824311,74954.0,74953.0,0.58512005]
[1730977019089,0.10824311,74954.0,74953.0,0.58678605]
[1730977019343,0.10907611,74954.0,74953.0,0.58678605]
[1730977020265,0.10907611,74954.0,74953.0,0.46158605]
[1730977022478,0.030833,74954.0,74953.0,0.46158605]
[1730977022703,0.030833,74954.0,74953.0,0.51048605]
[1730977023366,0.000833,74954.0,74953.0,0.51048605]
[1730977024686,0.000833,74954.0,74953.0,0.59078605]
[1730977025345,0.030833,74954.0,74953.0,0.59078605]
[1730977029562,0.030833,74954.0,74953.0,0.72302707]
[1730977031569,0.000833,74954.0,74953.0,0.72302707]
[1730977033690,0.000833,74954.0,74953.0,0.59078605]
[1730977033889,0.030833,74954.0,74953.0,0.54188605]
[1730977034169,0.030833,74954.0,74953.0,0.46158605]
[1730977035994,0.000833,74954.0,74953.0,0.46158605]
[1730977037226,0.000833,74954.0,74953.0,0.59398605]
[1730977040684,0.000833,74954.0,74953.0,0.72622707]
[1730977064693,0.000833,74954.0,74953.0,0.73122707]
[1730977071307,0.000833,74954.0,74953.0,0.73322707]
[1730977071772,0.000833,74954.0,74953.0,0.74322707]
[1730977072459,0.000833,74954.0,74953.0,0.74122707]
[1730977072960,0.000833,74954.0,74953.0,0.74322707]
[1730977075092,0.000833,74954.0,74953.0,0.78760034]
[1730977078141,0.0027986,74963.0,74962.0,0.03467005]
[1730977078342,0.0027986,74963.0,74962.0,0.79975418]
[1730977078560,0.0027986,74963.0,74962.0,0.80975418]
[1730977079217,0.0027986,74963.0,74962.0,0.90975418]
[1730977079915,0.0027986,74963.0,74962.0,0.91175418]
[1730977081279,0.0027986,74963.0,74962.0,0.90975418]
[1730977081478,0.0027986,74963.0,74962.0,0.83151107]
[1730977081695,0.0027986,74963.0,74962.0,0.90975418]
[1730977083472,0.0027986,74963.0,74962.0,0.95264732]
[1730977088402,0.0027986,74963.0,74962.0,0.95464732]
[1730977091824,0.0036316,74963.0,74962.0,0.95464732]
[1730977095599,0.0036316,74963.0,74962.0,0.87640421]
[1730977098046,0.0036316,74963.0,74962.0,0.87440421]
[1730977098290,0.0036316,74963.0,74962.0,0.95264732]
[1730977100556,0.0036316,74963.0,74962.0,0.87440421]
[1730977101209,0.0036316,74963.0,74962.0,0.95264732]
[1730977104739,0.0036316,74963.0,74962.0,0.95464732]
[1730977105395,0.0036316,74963.0,74962.0,0.95264732]
[1730977105618,0.0036316,74963.0,74962.0,0.95258367]
[1730977108156,0.0036316,74963.0,74962.0,0.87434056]
[1730977108424,0.0036316,74963.0,74962.0,0.73500421]
[1730977108621,0.0036316,74963.0,74962.0,0.74000421]
[1730977108833,0.0036316,74963.0,74962.0,0.74500421]
[1730977109053,0.0036316,74963.0,74962.0,0.74000421]
[1730977110308,0.0036316,74963.0,74962.0,0.74494056]
[1730977110514,0.0036316,74963.0,74962.0,0.74994056]
[1730977111899,0.0036316,74963.0,74962.0,0.74000421]
[1730977112332,0.0036316,74963.0,74962.0,0.73500421]
[1730977112548,0.0036316,74963.0,74962.0,0.74000421]
[1730977113185,0.0036316,74963.0,74962.0,0.73500421]
[1730977113390,0.0036316,74963.0,74962.0,0.74000421]
[1730977113626,0.0036316,74963.0,74962.0,0.59211107]
[1730977115545,0.0036316,74963.0,74962.0,0.45987005]
[1730977115546,0.0823316,74963.0,74962.0,0.45987005]
[1730977115752,0.1610316,74963.0,74962.0,0.45987005]
[1730977119339,0.0336316,74963.0,74962.0,0.59211107]
[1730977119924,0.0336316,74963.0,74962.0,0.59704742]
[1730977123484,0.0036316,74963.0,74962.0,0.59704742]
[1730977127200,0.0036316,74963.0,74962.0,0.59871342]
[1730977128546,0.0036316,74963.0,74962.0,0.59377707]
[1730977129710,0.0336316,74963.0,74962.0,0.59377707]
[1730977130748,0.0036316,74963.0,74962.0,0.59377707]
[1730977131799,0.0254646,74966.0,74962.0,0.59377707]
[1730977132022,0.0254646,74966.0,74964.0,0.02967005]
[1730977132276,0.0254646,74966.0,74965.0,0.16191107]
[1730977132547,0.0254646,74966.0,74965.0,0.59210107]
[1730977135536,0.0254646,74966.0,74965.0,0.63533726]
[1730977136656,0.0254646,74966.0,74965.0,0.71193726]
[1730977138997,0.0254646,74966.0,74965.0,0.71687361]
[1730977139471,0.0262976,74966.0,74965.0,0.71687361]
[1730977139625,0.0262976,74966.0,74965.0,0.76337361]
[1730977140900,0.0262976,74966.0,74965.0,0.88751361]
[1730977142006,0.0262976,74966.0,74965.0,0.89751361]
[1730977143054,0.0262976,74966.0,74965.0,0.89951361]
[1730977143480,0.0262976,74966.0,74965.0,0.85355666]
[1730977144169,0.0262976,74966.0,74965.0,0.95355666]
[1730977145739,0.0262976,74966.0,74965.0,0.95155666]
[1730977146166,0.000833,74966.0,74965.0,0.95155666]
[1730977147397,0.000833,74966.0,74965.0,0.87337361]
[1730977147812,0.000833,74966.0,74965.0,0.95155666]
[1730977148479,0.000833,74966.0,74965.0,0.95355666]
[1730977149578,0.000833,74966.0,74965.0,0.82845666]
[1730977150225,0.000833,74966.0,74965.0,0.91045666]
[1730977150460,0.000833,74966.0,74965.0,0.95985666]
[1730977151107,0.000833,74966.0,74965.0,0.75027361]
[1730977151315,0.000833,74966.0,74965.0,0.82845666]
[1730977152402,0.000833,74966.0,74965.0,0.95975666]
[1730977152602,0.000833,74966.0,74965.0,0.95775666]
[1730977153043,0.000833,74966.0,74965.0,0.95975666]
[1730977153250,0.000833,74969.0,74968.0,0.0446064]
[1730977153452,0.000833,74969.0,74968.0,0.40521453]
[1730977153669,0.000833,74969.0,74968.0,0.83471742]
[1730977154962,0.000833,74969.0,74968.0,0.91290047]
[1730977155377,0.000833,74969.0,74968.0,0.95880072]
[1730977156474,0.000756,74973.0,74972.0,0.002]
[1730977156745,0.000756,74981.0,74978.0,0.2743064]
[1730977156948,0.000756,74981.0,74978.0,0.91175072]
[1730977161306,0.000756,74981.0,74978.0,0.83786742]
[1730977161433,0.000756,74981.0,74978.0,0.83586742]
[1730977162440,0.000756,74981.0,74978.0,0.87967037]
[1730977162640,0.000756,74981.0,74978.0,0.88167037]
[1730977163083,0.001233,74979.0,74978.0,0.88167037]
[1730977164241,0.001233,74979.0,74978.0,0.87967037]
[1730977164444,0.001233,74979.0,74978.0,0.88167037]
[1730977166341,0.001233,74979.0,74978.0,0.87967037]
[1730977167018,0.001233,74979.0,74978.0,0.88167037]
[1730977168202,0.000756,74988.0,74985.0,0.01493635]
[1730977168417,0.000756,74988.0,74985.0,0.30093072]
[1730977168567,0.20036051,74992.0,74985.0,0.30093072]
[1730977168568,0.18862851,74992.0,74991.0,0.00493635]
[1730977168730,0.18862851,74992.0,74991.0,0.59689742]
[1730977168931,0.001156,74999.0,74993.0,0.00493635]
[1730977169211,0.001156,74999.0,74994.0,0.59194107]
[1730977172414,0.001156,74999.0,74994.0,0.71602437]
[1730977172645,0.001156,74999.0,74994.0,0.72096072]
[1730977175465,0.001156,74999.0,74994.0,0.67989751]
[1730977176352,0.000873,74995.0,74994.0,0.59687742]
[1730977179250,0.000873,74995.0,74994.0,0.16684742]
[1730977181714,0.068029,75000.0,74997.0,0.00493635]
[1730977181932,0.068029,75000.0,74999.0,0.11269014]
[1730977182174,0.068029,75000.0,74999.0,0.24493116]
[1730977182627,0.068029,75000.0,74999.0,0.24986751]
[1730977184655,0.068029,75000.0,74999.0,0.3328876]
[1730977184915,0.03804965,75000.0,74999.0,0.4892876]
[1730977185334,0.03804965,75000.0,74999.0,0.5654876]
[1730977185565,0.01486487,75000.0,74999.0,0.5674876]
[1730977185759,0.01486487,75000.0,74999.0,0.5941276]
[1730977185972,0.01486487,75000.0,74999.0,0.63244395]
[1730977186202,0.00840622,75000.0,74999.0,0.65534254]
[1730977186405,8e-05,75006.0,75002.0,0.19854499]
[1730977186519,8e-05,75006.0,75002.0,0.43078601]
[1730977187359,8e-05,75006.0,75002.0,0.95471761]
[1730977187564,0.027876,75011.0,75010.0,0.04450499]
[1730977187798,0.027876,75011.0,75010.0,0.80063761]
[1730977190397,0.027876,75011.0,75010.0,0.87583761]
[1730977191669,0.027876,75011.0,75010.0,0.9191102]
[1730977192459,0.027876,75011.0,75010.0,0.8439102]
[1730977193036,0.027876,75011.0,75010.0,0.83897385]
[1730977194504,0.027876,75011.0,75010.0,0.71003225]
[1730977195434,0.077476,75011.0,75010.0,0.56175966]
[1730977199868,0.028708,75011.0,75010.0,0.56175966]
[1730977201206,0.075708,75011.0,75010.0,0.56175966]
[1730977203457,0.155908,75011.0,75010.0,0.56175966]
[1730977204753,0.155908,75011.0,75010.0,0.58248719]
[1730977205859,0.155908,75011.0,75010.0,0.56175966]
[1730977206489,0.155908,75011.0,75010.0,0.42951864]
[1730977207830,0.18637599,75011.0,75010.0,0.42951864]
[1730977209214,0.20937599,75011.0,75010.0,0.42951864]
[1730977209451,0.21437599,75011.0,75010.0,0.42951864]
[1730977210117,0.22682407,75011.0,75010.0,0.42951864]
[1730977210328,0.22682407,75011.0,75010.0,0.33141864]
[1730977210759,0.10962407,75011.0,75010.0,0.11071864]
[1730977210969,0.19917599,75011.0,75010.0,0.11071864]
[1730977211183,0.005,75007.0,75002.0,0.001664]
[1730977211389,0.1239416,75005.0,75002.0,0.001664]
[1730977211628,0.03044894,75004.0,75002.0,0.001664]
[1730977213110,0.023,75003.0,75002.0,0.001664]
[1730977213337,0.19068996,75003.0,75002.0,0.001664]
[1730977213553,0.20268996,75003.0,75002.0,0.001664]
[1730977213766,0.21510938,75003.0,75002.0,0.001664]
[1730977214237,0.20268996,75003.0,75002.0,0.001664]
[1730977215541,0.20268996,75003.0,75002.0,0.031664]
[1730977216049,0.37358344,75003.0,75002.0,0.031664]
[1730977216710,0.75588665,75003.0,75002.0,0.031664]
[1730977217465,0.79828413,75003.0,75002.0,0.031664]
[1730977217891,0.72739065,75003.0,75002.0,0.031664]
[1730977218973,0.69494171,75003.0,75002.0,0.031664]
[1730977219197,0.74826771,75003.0,75002.0,0.031664]
[1730977219663,0.55770069,75003.0,75002.0,0.031664]
[1730977219871,0.55270069,75003.0,75002.0,0.031664]
[1730977222514,0.55270069,75003.0,75002.0,0.001664]
[1730977222934,0.17039748,75003.0,75002.0,0.001664]
[1730977225775,0.16539748,75003.0,75002.0,0.001664]
[1730977226234,0.38230321,75004.0,75002.0,0.001664]
[1730977227346,0.04344596,75010.0,75002.0,0.001664]
[1730977229989,0.04344596,75010.0,75003.0,0.20032051]
[1730977230195,0.04344596,75010.0,75004.0,0.0753]
[1730977231043,0.04344596,75010.0,75006.0,0.03]
[1730977231303,0.000832,75010.0,75006.0,0.03]
[1730977231505,0.000832,75010.0,75005.0,0.0772]
[1730977231506,0.000832,75010.0,75008.0,0.03]
[1730977231711,0.000832,75010.0,75008.0,0.16224102]
[1730977232138,0.000832,75010.0,75009.0,0.046]
[1730977232342,0.000832,75010.0,75009.0,0.076]
[1730977232555,0.000832,75010.0,75009.0,0.1549]
[1730977233212,0.000832,75010.0,75009.0,0.28714102]
[1730977233441,0.000832,75010.0,75009.0,0.2898072]
[1730977233656,0.000832,75010.0,75009.0,0.28714102]
[1730977234766,0.000832,75010.0,75009.0,0.29207737]
[1730977236561,0.000755,75014.0,75009.0,0.29207737]
[1730977236562,0.000755,75014.0,75013.0,0.04493635]
[1730977236783,0.000755,75014.0,75013.0,0.40447737]
[1730977238999,0.000755,75014.0,75013.0,0.30447737]
[1730977239219,0.000755,75014.0,75013.0,0.42841897]
[1730977239435,0.000755,75014.0,75013.0,0.30447737]
[1730977241363,0.000755,75014.0,75013.0,0.29954102]
[1730977241649,0.000755,75014.0,75013.0,0.29447737]
[1730977241870,0.000755,75014.0,75013.0,0.30447737]
[1730977242944,0.000755,75014.0,75013.0,0.28954102]
[1730977243410,0.000755,75014.0,75013.0,0.29447737]
[1730977243638,0.000755,75014.0,75013.0,0.30447737]
[1730977243862,0.000755,75014.0,75013.0,0.28954102]
[1730977244051,0.000755,75014.0,75013.0,0.29954102]
[1730977244278,0.000755,75014.0,75013.0,0.28954102]
[1730977244717,0.000755,75014.0,75013.0,0.29447737]
[1730977244948,0.000755,75014.0,75013.0,0.30447737]
[1730977245412,0.000755,75014.0,75013.0,0.29447737]
[1730977245639,0.000755,75014.0,75013.0,0.28954102]
[1730977251752,0.000755,75014.0,75013.0,0.1573]
[1730977252665,0.000755,75014.0,75013.0,0.28954102]
[1730977252894,0.000755,75014.0,75013.0,0.1573]
[1730977253577,0.000755,75014.0,75013.0,0.03]
[1730977254266,0.1239416,75007.0,75004.0,0.001666]
[1730977259617,0.16818962,75007.0,75004.0,0.001666]
[1730977263431,0.06818962,75007.0,75004.0,0.001666]
[1730977264101,0.04424802,75007.0,75004.0,0.001666]
[1730977264528,0.105,75010.0,75004.0,0.001666]
[1730977265838,0.14745065,75010.0,75004.0,0.001666]
[1730977270240,0.14745065,75010.0,75005.0,0.03]
[1730977271830,0.1469416,75007.0,75006.0,0.03]
[1730977272053,0.39618262,75007.0,75006.0,0.03]
[1730977272290,0.39418262,75007.0,75006.0,0.03]
[1730977272558,0.105,75007.0,75006.0,0.03]
[1730977272760,0.1,75007.0,75006.0,0.025]
[1730977273197,0.1,75007.0,75006.0,0.0448882]
[1730977273423,0.1,75007.0,75006.0,0.05732004]
[1730977273905,0.1,75008.0,75006.0,0.05732403]
[1730977274121,0.1,75008.0,75007.0,0.03743184]
[1730977276122,0.2239416,75008.0,75007.0,0.03743184]
[1730977277676,0.2239416,75008.0,75007.0,0.0374428]
[1730977278761,0.38918262,75008.0,75007.0,0.0374428]
[1730977279648,0.40163682,75008.0,75007.0,0.0374428]
[1730977281017,0.40163682,75008.0,74993.0,0.0825]
[1730977281018,0.01,74989.0,74988.0,0.23032051]
[1730977281459,0.01,74989.0,74988.0,0.03]
[1730977282500,0.01,74989.0,74973.0,0.03]
[1730977282711,0.01,74989.0,74972.0,0.20298765]
[1730977282712,0.005,74986.0,74975.0,0.03]
[1730977282906,0.005,74986.0,74977.0,0.03]
[1730977283137,0.005,74986.0,74968.0,0.1259416]
[1730977283138,0.005,74986.0,74979.0,0.03]
[1730977283368,0.005,74986.0,74981.0,0.03]
[1730977283589,0.005,74986.0,74981.0,0.16224102]
[1730977283975,0.005,74986.0,74983.0,0.03]
[1730977284231,0.005,74989.0,74985.0,0.1573]
[1730977284441,0.005,74989.0,74988.0,0.1573]
[1730977284656,0.005,74989.0,74988.0,0.28954102]
[1730977284866,0.005,74995.0,74994.0,0.03]
[1730977285091,0.005,74995.0,74994.0,0.28674102]
[1730977285280,0.20032051,74998.0,74995.0,0.1245]
[1730977285531,0.005,74999.0,74998.0,0.03]
[1730977285918,0.005,75000.0,74998.0,0.03]
[1730977286173,0.005,75000.0,74999.0,0.1545]
[1730977287073,0.01,75000.0,74999.0,0.1545]
[1730977287285,0.005,75007.0,75003.0,0.03]
[1730977287465,0.005,75007.0,75003.0,0.16224102]
[1730977287466,0.20032051,75007.0,75003.0,0.16224102]
[1730977287694,0.20032051,75007.0,75005.0,0.03]
[1730977287963,0.005,75009.0,75005.0,0.03]
[1730977288669,0.005,75007.0,75005.0,0.03]
[1730977289314,0.005,75009.0,75005.0,0.03]
[1730977290678,0.000833,75014.0,75007.0,0.1557]
[1730977290916,0.000833,75014.0,75007.0,0.28794102]
[1730977292900,0.000833,75014.0,75007.0,0.30037457]
[1730977295420,0.000833,75014.0,75013.0,0.1539416]
[1730977295654,0.000833,75014.0,75013.0,0.41248262]
[1730977308024,0.000833,75014.0,75013.0,0.28854102]
[1730977315325,0.000833,75017.0,75013.0,0.28854102]
[1730977315539,0.000833,75017.0,75015.0,0.03]
[1730977315763,0.000833,75017.0,75016.0,0.16224102]
[1730977319260,0.010833,75017.0,75016.0,0.03]
[1730977320150,0.010833,75017.0,75009.0,0.03]
[1730977320383,0.010833,75017.0,75008.0,0.0772]
[1730977320384,0.005,75015.0,75011.0,0.03]
[1730977320603,0.005833,75017.0,75013.0,0.03]
[1730977320604,0.01,75014.0,75013.0,0.03]
[1730977320823,0.015,75014.0,75013.0,0.03]
[1730977322224,0.096,75014.0,75013.0,0.03]
[1730977329399,0.015,75014.0,75013.0,0.03]
[1730977331844,0.0979,75014.0,75013.0,0.03]
[1730977332320,0.0979,75014.0,75008.0,0.001666]
[1730977332321,0.015,75009.0,75008.0,0.001666]
[1730977335195,0.01,75009.0,75008.0,0.001666]
[1730977335413,0.043,75009.0,75008.0,0.001666]
[1730977335637,0.08599951,75009.0,75008.0,0.001666]
[1730977335844,0.31029951,75009.0,75008.0,0.001666]
[1730977336066,0.2673,75009.0,75008.0,0.001666]
[1730977336754,0.31058205,75009.0,75008.0,0.001666]
[1730977340389,0.31258205,75009.0,75008.0,0.001666]
[1730977340613,0.69288526,75009.0,75008.0,0.001666]
[1730977341054,0.64288526,75009.0,75008.0,0.001666]
[1730977342567,0.77512628,75009.0,75008.0,0.001666]
[1730977343694,0.79812628,75009.0,75008.0,0.031666]
[1730977343907,0.80012628,75009.0,75008.0,0.031666]
[1730977344128,0.80512628,75009.0,75008.0,0.031666]
[1730977344409,0.81012628,75009.0,75008.0,0.031666]
[1730977345300,0.80812628,75009.0,75008.0,0.031666]
[1730977345735,0.80812628,75009.0,75008.0,0.001666]
[1730977346166,0.93206788,75009.0,75008.0,0.001666]
[1730977350486,0.88706788,75009.0,75008.0,0.001666]
[1730977352249,0.88906788,75009.0,75008.0,0.001666]
[1730977352480,0.88706788,75009.0,75008.0,0.001666]
[1730977355588,0.84130832,75009.0,75008.0,0.001666]
[1730977355795,0.76900832,75009.0,75008.0,0.04412482]
[1730977356945,0.53058526,75009.0,75008.0,0.04412482]
[1730977357166,0.6087673,75009.0,75008.0,0.04412482]
[1730977357668,0.6087673,75009.0,75008.0,0.04412736]
[1730977358099,0.6137673,75009.0,75008.0,0.04412736]
[1730977361264,0.6137673,75009.0,75008.0,0.031666]
[1730977361476,0.6137673,75009.0,75008.0,0.04413922]
[1730977363019,0.6087673,75009.0,75008.0,0.04413922]
[1730977363142,0.6087673,75009.0,75008.0,0.12183922]
[1730977363143,0.48230321,75009.0,75008.0,0.12183922]
[1730977363355,0.38230321,75009.0,75008.0,0.12183922]
[1730977364777,0.38230321,75009.0,75008.0,0.109366]
[1730977365043,0.07818204,75010.0,75008.0,0.12184268]
[1730977365269,0.100833,75014.0,75009.0,0.04247668]
[1730977365487,0.04326533,75012.0,75011.0,0.03]
[1730977365713,0.100833,75014.0,75011.0,0.03]
[1730977366147,0.000833,75014.0,75011.0,0.03]
[1730977366361,0.04396405,75014.0,75011.0,0.03]
[1730977366618,0.000833,75014.0,75012.0,0.03]
[1730977367612,0.000833,75014.0,75013.0,0.03]
[1730977367869,0.07901504,75014.0,75013.0,0.03]
[1730977369149,0.4124381,75014.0,75013.0,0.03]
[1730977369350,0.42691183,75014.0,75013.0,0.03]
[1730977369794,0.42491183,75014.0,75013.0,0.028]
[1730977370257,0.34672979,75014.0,75013.0,0.028]
[1730977370886,0.42491183,75014.0,75013.0,0.028]
[1730977371089,0.729033,75014.0,75013.0,0.028]
[1730977371985,0.72903355,75014.0,75013.0,0.028]
[1730977372194,0.80721559,75014.0,75013.0,0.028]
[1730977372397,0.72903355,75014.0,75013.0,0.028]
[1730977373863,0.095,75013.0,75008.0,0.001666]
[1730977374111,0.07818204,75009.0,75008.0,0.001666]
[1730977376677,0.79390831,75009.0,75008.0,0.001666]
[1730977376888,0.80390831,75009.0,75008.0,0.001666]
[1730977377547,2.34381045,75009.0,75008.0,0.001666]
[1730977377973,0.84381045,75009.0,75008.0,0.001666]
[1730977380095,0.86376153,75009.0,75008.0,0.001666]
[1730977380289,0.80390831,75009.0,75008.0,0.001666]
[1730977381045,0.86376153,75009.0,75008.0,0.001666]
[1730977381490,0.86378541,75009.0,75008.0,0.001666]
[1730977381703,0.80390831,75009.0,75008.0,0.001666]
[1730977382578,0.86377932,75009.0,75008.0,0.001666]
[1730977383895,0.8837126,75009.0,75008.0,0.001666]
[1730977384529,0.80390831,75009.0,75008.0,0.001666]
[1730977385659,0.92527332,75009.0,75008.0,0.001666]
[1730977385873,0.92527147,75009.0,75008.0,0.001666]
[1730977386099,0.97589096,75009.0,75008.0,0.001666]
[1730977386534,0.89608851,75009.0,75008.0,0.001666]
[1730977386766,0.84546724,75009.0,75008.0,0.001666]
[1730977387009,0.92026264,75009.0,75008.0,0.001666]
[1730977387218,0.92026264,75009.0,74974.0,0.002]
[1730977387219,0.005,74990.0,74989.0,0.20032051]
[1730977387436,0.69272627,74990.0,74989.0,0.20032051]
[1730977387660,0.1,74989.0,74982.0,0.0481]
[1730977387873,0.07818204,74983.0,74982.0,0.0481]
[1730977390652,0.21046306,74983.0,74982.0,0.0481]
[1730977391867,0.59276627,74983.0,74982.0,0.0481]
[1730977392299,0.63716661,74983.0,74982.0,0.0481]
[1730977393144,0.63716661,74983.0,74982.0,0.049766]
[1730977395257,0.38234321,74983.0,74982.0,0.049766]
[1730977395505,0.38234321,74983.0,74982.0,0.125466]
[1730977396202,0.38234321,74983.0,74982.0,0.127466]
[1730977397101,0.38234321,74983.0,74982.0,0.125466]
[1730977397743,4e-05,74983.0,74982.0,0.125466]
[1730977399596,4e-05,74983.0,74982.0,0.127466]
[1730977399796,4e-05,74983.0,74982.0,0.125466]
[1730977401433,4e-05,74983.0,74982.0,0.127466]
[1730977401654,4e-05,74983.0,74982.0,0.125466]
[1730977407779,4e-05,74983.0,74982.0,0.127466]
[1730977408991,4e-05,74983.0,74982.0,0.125466]
[1730977411517,4e-05,74983.0,74982.0,0.127466]
[1730977412186,4e-05,74983.0,74982.0,0.26470702]
[1730977412412,0.20032051,74995.0,74991.0,0.005]
[1730977412640,0.20032051,74995.0,74992.0,0.0823]
[1730977412860,0.20032051,74995.0,74994.0,0.002]
[1730977413079,0.04350519,75004.0,74999.0,0.0492]
[1730977413317,0.38230321,75008.0,75000.0,0.077]
[1730977414025,0.51144621,75012.0,75000.0,0.077]
[1730977414249,0.04250368,75008.0,75000.0,0.077]
[1730977414463,0.100833,75010.0,75000.0,0.077]
[1730977415821,0.14408191,75010.0,75000.0,0.077]
[1730977416866,0.14408191,75010.0,75001.0,0.0478]
[1730977417730,0.14408191,75010.0,75004.0,0.002]
[1730977417946,0.14408191,75010.0,75001.0,0.0498]
[1730977419274,0.04408191,75010.0,75001.0,0.0498]
[1730977420121,0.04408191,75010.0,75002.0,0.08]
[1730977420329,0.04408191,75010.0,75003.0,0.0496]
[1730977420543,0.04408191,75010.0,75004.0,0.002]
[1730977422142,0.04408191,75010.0,75003.0,0.0496]
[1730977422363,0.08304077,75007.0,75003.0,0.0496]
[1730977422822,0.1,75009.0,75004.0,0.002]
[1730977423027,0.1,75009.0,75003.0,0.0496]
[1730977423664,0.24440242,75010.0,75003.0,0.0496]
[1730977423665,0.14408191,75010.0,75003.0,0.0496]
[1730977424341,0.04408191,75010.0,75003.0,0.0496]
[1730977425707,0.000833,75010.0,75005.0,0.0452]
[1730977426128,0.000833,75010.0,75006.0,0.01243757]
[1730977426424,0.000833,75010.0,75008.0,0.002]
[1730977426647,0.000833,75010.0,75009.0,0.124]
[1730977429334,0.000833,75010.0,75009.0,0.129]
[1730977429541,0.000833,75010.0,75009.0,0.26124102]
[1730977437494,0.000833,75010.0,75009.0,0.26390698]
[1730977437706,0.000833,75013.0,75012.0,0.002]
[1730977437933,0.000833,75013.0,75012.0,0.26140698]
[1730977438149,0.000833,75013.0,75012.0,0.26640698]
[1730977438368,0.000833,75013.0,75012.0,0.26874102]